Cogmind - Beta 11.1 @@@ ROGUE MODE // 2022.05.31 @ 15:57:29 Player: Demise Result: Destroyed by D-53 Grenadier with Mini Grenade Launcher Performance ------------- Evolutions (0) 0 Regions Visited (2) 400 Robots Destroyed (32) 160 Value Destroyed (630) 630 Prototype IDs (3) 60 Alien Tech Used (0) 0 Bonus (0) 0 TOTAL SCORE: 1250 Bonus ------- None Cogmind --------- Core Integrity 0/250 Matter 277/300 Energy 78/100 System Corruption 2% Temperature Cool (0) Movement Rolling (105) Ox1 Location -10/Mines Parts ------- > --- POWER (1) -------- (None) > --- PROPULSION (2) --- Armored Wheel Armored Wheel > --- UTILITY (2) ------ High-capacity Storage Unit Seismic Detector > --- WEAPON (2) ------- Rocket Launcher > --- INVENTORY (20) --- Light Treads Light Treads Wheel Wheel Armored Wheel Improved Heat Sink Sensor Array Signal Interpreter Seismic Detector Transport Network Coupler Improved Targeting Computer Medium Laser Medium Laser Medium Laser Medium Laser Small Laser Blade Trap Blade Trap Blade Trap Blade Trap Peak State ------------ > --- POWER ------------ Ion Engine > --- PROPULSION ------- Armored Wheel Armored Wheel > --- UTILITY ---------- High-capacity Storage Unit Seismic Detector > --- WEAPON ----------- Light Assault Rifle Rocket Launcher > --- INVENTORY -------- Light Treads Light Treads Armored Wheel Armored Wheel Improved Heat Sink Sensor Array Signal Interpreter Seismic Detector Transport Network Coupler Improved Targeting Computer Weapon Shielding Medium Laser Medium Laser Medium Laser Medium Laser Small Laser Light Assault Rifle Blade Trap [Rating: 12] Favorites ----------- Power Ion Engine Engine Ion Engine Propulsion Armored Wheel Wheel Armored Wheel Utility High-capacity Storage Unit Device Seismic Detector Storage High-capacity Storage Unit Protection Light Armor Plating Weapon Light Assault Rifle Energy Gun Medium Laser Ballistic Gun Light Assault Rifle Launcher Rocket Launcher Build | -11 -10 -10 ------- Run | Scr Mat Min Slots Evolved . | . . . Power . | . . . Propulsion . | . . . Utility . | . . . Weapon . | . . . Parts Attached 50 | 7 35 8 Power 6 | 1 5 . Engine 6 | 1 5 . Core . | . . . Reactor . | . . . Propulsion 19 | 2 16 1 Treads . | . . . Leg . | . . . Wheel 19 | 2 16 1 Hover . | . . . Flight . | . . . Utility 14 | 2 9 3 Device 6 | 1 3 2 Storage 3 | 1 2 . Processor . | . . . Hackware . | . . . Protection 5 | . 4 1 Artifact . | . . . Weapon 11 | 2 5 4 Energy Gun 1 | . . 1 Energy Cannon . | . . . Ballistic Gun 8 | 2 5 1 Ballistic Cannon . | . . . Launcher 2 | . . 2 Special Weapon . | . . . Impact Weapon . | . . . Slashing Weapon . | . . . Piercing Weapon . | . . . Special Melee Weapon . | . . . Unidentified Prototypes . | . . . Parts Lost 8 | . 3 5 Power 2 | . 1 1 Propulsion 3 | . 2 1 Utility 1 | . . 1 Weapon 2 | . . 2 Highest Loss Streak 4 | . 3 4 To Critical Strikes . | . . . Average Slot Usage (%) 93 | . 94 89 Engine 9 | . 10 6 Wheel 27 | . 27 28 Device 8 | . 7 11 Storage 14 | . 14 14 Protection 5 | . 6 . Energy Gun 1 | . . 8 Ballistic Gun 25 | . 27 19 Naked Turns . | . . . Heaviest Build 51 | 11 50 51 Greatest Support 26 | 26 26 24 Greatest Overweight (x) 4 | . 4 2 Average Overweight (x) . | . . 1 Largest Inventory Capacity 20 | 8 20 20 Average Capacity 15 | 7 15 20 Most Carried 20 | 7 20 20 Average Carried 13 | 2 13 18 Final Capacity 20 | 8 20 20 Final Carried 20 | 7 20 20 Class Distribution -------------------- 100% | Mutant Dominant Class ---------------- Mutant | -10/Materials Mutant | -10/Mines Resources | -11 -10 -10 ----------- Run | Scr Mat Min Matter Collected 924 | 318 464 142 Remotely . | . . . Salvage Created 1052 | 222 712 118 Parts 80 | 21 47 12 Haulers Intercepted 2 | . 2 . Recyclers Shooed . | . . . Parts Field Recycled . | . . . Retrieved Matter . | . . . Parts Self-Destructed . | . . . Prevented . | . . . Kills | -11 -10 -10 ------- Run | Scr Mat Min Combat Hostiles Destroyed 16 | . 11 5 Guns 13 | . 11 2 AOE 3 | . . 3 Classes Destroyed 8 | 3 4 1 Worker 3 | 2 1 . Builder 2 | . 1 1 Tunneler 5 | 5 . . Hauler 2 | . 2 . Recycler 2 | 1 1 . Watcher 2 | . 2 . Swarmer 3 | . . 3 Grunt 13 | . 11 2 Best Kill Streak 6 | 6 4 4 Combat Bots Only 4 | . 4 3 Max Kills in Single Turn 2 | 1 1 2 Gunslinging . | . . . Exploded 1 | . . 1 Melee . | . . . Uniques/NPCs Destroyed . | . . . Combat | -11 -10 -10 -------- Run | Scr Mat Min Damage Taken 1100 | . 654 446 Core 261 | . 169 92 Absorbed by Shields . | . . . Redirected to Shielding 53 | . 41 12 Regen/Repaired (Parts) 41 | . 41 . Core Remaining (%) 100 | 100 . . Volleys Fired 129 | 24 84 21 Largest 2 | 2 2 2 Hottest 70 | 40 40 70 Shots Fired 253 | 48 167 38 Gun 249 | 48 167 34 Cannon . | . . . Launcher 4 | . . 4 Special . | . . . Kinetic 235 | 48 167 20 Thermal 14 | . . 14 Explosive 4 | . . 4 Electromagnetic . | . . . Robot Hit Streak 17 | 6 17 9 Robot Miss Streak 4 | 2 4 2 Penetration Max . | . . . Secondary Targets 2 | . 1 1 Max Gunslinging Chain 1 | . 1 1 Shots Hit Robots 177 | 29 121 27 Core Hits 71 | 16 44 11 Critical Kills . | . . . Critical Parts Destroyed 2 | 1 . 1 Critical Strikes 2 | 1 . 1 Destroy 2 | 1 . 1 Melee Attacks . | . . . Impact . | . . . Slashing . | . . . Piercing . | . . . Sneak Attacks . | . . . Combat Hostiles . | . . . Follow-up Attacks . | . . . Damage Inflicted 1877 | 239 987 651 Guns 1494 | 239 987 268 Cannons . | . . . Explosions 383 | . . 383 Melee . | . . . Ramming . | . . . Kinetic 1350 | 239 987 124 Thermal 144 | . . 144 Explosive 383 | . . 383 Electromagnetic . | . . . Impact . | . . . Slashing . | . . . Piercing . | . . . Highest Corruption 2 | . 2 2 Average Corruption 2 | . 2 2 Corruption Purged . | . . . Corruption Blocked . | . . . Effects 6 | . 1 5 Message Errors 2 | . . 2 Matter Fused 1 | . 1 . Energy Discharges 1 | . . 1 Data Loss (major) 2 | . . 2 Overload Shots . | . . . Overflow Damage 39 | . . 39 Projectiles . | . . . Explosions 39 | . . 39 Melee . | . . . Knockbacks . | . . . Impact . | . . . Kinetic . | . . . Secondary . | . . . Self-Inflicted Damage 10 | . . 10 Shots 1 | . . 1 Rammed . | . . . Targets Rammed . | . . . Kicked . | . . . Crushed . | . . . Highest Temperature 295 | . 26 295 Average Temperature 67 | . 8 163 Received Heat Transfer 585 | . 354 231 Effects 1 | . . 1 Energy Bleed 1 | . . 1 Siege Activations . | . . . Robots Corrupted . | . . . Combat Hostiles . | . . . Parts Fried . | . . . Impact Corruptions . | . . . Robots Melted . | . . . Combat Hostiles . | . . . Parts Melted . | . . . Heat Transferred 407 | . . 407 Parts Sabotaged . | . . . Parts Stolen . | . . . Parts Stripped . | . . . Power Chain Reactions . | . . . Missiles Intercepted . | . . . Alert | -11 -10 -10 ------- Run | Scr Mat Min Peak Influence 271 | 40 271 251 Initial 26 | . 26 26 Average 127 | 16 133 150 Maximum Alert Level 1 | . 1 1 Low Security (%) 79 | 100 84 53 Level 1 20 | . 15 46 Level 2 . | . . . Level 3 . | . . . Level 4 . | . . . Level 5 . | . . . High Security . | . . . Max Security . | . . . Squads Dispatched 4 | . 4 . Investigation 4 | . 4 . Extermination . | . . . Reinforcement . | . . . Assault . | . . . Garrison . | . . . Intercept . | . . . Searches Triggered . | . . . Construction Impeded . | . . . Haulers Reinforced . | . . . Active Scanning Responses . | . . . Cargo Convoy Interrupts . | . . . Stealth | -11 -10 -10 --------- Run | Scr Mat Min Distress Signals 2 | . 2 . Communications Jammed . | . . . Distress Signals . | . . . Times Spotted 31 | . 22 9 Peak Tracking Total 5 | . 5 3 Tactical Retreats 4 | . 3 1 Traps | -11 -10 -10 ------- Run | Scr Mat Min Traps Triggered 8 | . 8 . Indirectly . | . . . Trap Hack Attempts . | . . . Triggered . | . . . Disarmed . | . . . Reprogrammed . | . . . Reused . | . . . Traps Extracted . | . . . Installed . | . . . Triggered . | . . . Most Traps Carried 4 | . . 4 Machines | -11 -10 -10 ---------- Run | Scr Mat Min Machines Disabled 1 | . . 1 Max in Single Turn 1 | . . 1 Machines Sabotaged . | . . . Garrisons Compromised . | . . . Overloaded Fab Kills . | . . . Hacking | -11 -10 -10 --------- Run | Scr Mat Min Machines Accessed 9 | . 9 . Terminals 6 | . 6 . Fabricators . | . . . Repair Stations 1 | . 1 . Recycling Units 2 | . 2 . Scanalyzers . | . . . Garrison Access . | . . . Total Hacks 36 | . 36 . Successful 18 | . 18 . Failed 18 | . 18 . Catastrophic 2 | . 2 . Database Lockouts . | . . . Manual 23 | . 23 . Terminals 26 | . 26 . Fabricators . | . . . Repair Stations 3 | . 3 . Recycling Units 7 | . 7 . Scanalyzers . | . . . Garrison Access . | . . . Terminal Hacks 5 | . 5 . Robot Analysis 2 | . 2 . Prototype ID Bank 2 | . 2 . Terminal Index 1 | . 1 . Fabricator Hacks . | . . . Repair Station Hacks 3 | . 3 . Scan Component 2 | . 2 . Repair 1 | . 1 . Recycling Unit Hacks 1 | . 1 . Retrieve Components 1 | . 1 . Scanalyzer . | . . . Garrison Access Hacks . | . . . Unauthorized Hacks 9 | . 9 . Terminals 7 | . 7 . Botnet 6 | . 6 . Operators 1 | . 1 . Fabricators . | . . . Repair Stations . | . . . Recycling Units 2 | . 2 . Tunnel 2 | . 2 . Scanalyzers . | . . . Garrison Access . | . . . Data Cores Recovered . | . . . Used . | . . . Hacking Detections 8 | . 8 . Full Trace Events 4 | . 4 . Feedback Events . | . . . Feedback Blocked . | . . . Robot Schematics Acquired . | . . . Robots Built . | . . . Authchips . | . . . Time . | . . . Total Robot Build Rating . | . . . Part Schematics Acquired . | . . . Parts Built . | . . . Authchips . | . . . Time . | . . . Total Part Build Rating . | . . . Parts Repaired 1 | . 1 . Time 26 | . 26 . Parts Recycled . | . . . Recycled Matter . | . . . Retrieved Matter . | . . . Retrieved Components 9 | . 9 . Parts Scanalyzed . | . . . Part Schematics Acquired . | . . . Parts Damaged . | . . . Bothacking | -11 -10 -10 ------------ Run | Scr Mat Min Used RIF Installer . | . . . Robots Hacked . | . . . Non-combat . | . . . Combat . | . . . Robot Hacks Applied . | . . . Relay Couplers Released . | . . . Fabnet Peak Effective % . | . . . Robots Rewired . | . . . Allies Hacked . | . . . Hacks Repelled . | . . . Allies | -11 -10 -10 -------- Run | Scr Mat Min Total Allies . | . . . Largest Group . | . . . Highest-Rated Group . | . . . Highest-Rated Ally . | . . . Total Orders . | . . . Ally Attacks . | . . . Total Damage . | . . . Kills . | . . . Allies Corrupted . | . . . Allies Melted . | . . . Intel | -11 -10 -10 ------- Run | Scr Mat Min Robot Analysis Total 2 | . 2 . Derelict Logs Recovered 1 | . . 1 Drone Launches . | . . . Drone Recoveries . | . . . Exploration | -11 -10 -10 ------------- Run | Scr Mat Min Turns Passed 1832 | 140 1341 351 Spaces Moved 1247 | 68 920 259 Core 2 | 2 . . Treads . | . . . Legs . | . . . Wheels 1245 | 66 920 259 Hover . | . . . Flight . | . . . Fastest Speed 50 | 50 80 105 Average Speed 102 | 89 102 105 Slowest Speed 150 | 100 150 120 Overloaded Moves . | . . . Propulsion Burnouts . | . . . Robots Hopped . | . . . Cave-ins Triggered . | . . . Exploration Rate (%) 48 | 4 95 45 Regions Visited 2 Branch Regions 1 Pre-discovered Areas 3 | . 2 1 Known Exits Taken . | . . . Unknown Exits Taken 2 | 1 1 . Scrap Searched 1 | . . 1 Spaces Dug 13 | . . 13 Terrain Destroyed 44 | . . 44 Melee . | . . . Projectile . | . . . AOE 44 | . . 44 Terrain Rammed . | . . . Walls Destroyed . | . . . Machines Disabled . | . . . Actions | -11 -10 -10 --------- Run | Scr Mat Min Total 1592 | 105 1181 306 Wait 111 | . 108 3 Move 1245 | 67 919 259 Hop . | . . . Pick Up 38 | 7 22 9 Fast Attach 26 | 7 19 . Attach 6 | . 3 3 Detach 1 | . 1 . Swap 18 | . 13 5 Drop 18 | . 12 6 Fire 129 | 24 84 21 Melee . | . . . Ram . | . . . Kick . | . . . Crush . | . . . Escape Stasis . | . . . Rewire . | . . . Trap . | . . . Miscellaneous . | . . . Route ------- -11/Scrapyard -10/Materials (discovered 5 exits: [*Mat x3] / [*Min x2]) -10/Mines History --------- Turn | Location | Event 19 | -11/Scrapyard | Discovered new exit (range 15) 141 | -11/Scrapyard | Entered Materials 305 | -10/Materials | Build established: Mutant 440 | -10/Materials | Lost 3 parts (1p2n) 448 | -10/Materials | Discovered new exit (range 14) 502 | -10/Materials | Discovered new exit (range 15) 533 | -10/Materials | Repaired Lgt. Assault Rifle 637 | -10/Materials | Discovered new exit (range 9) 740 | -10/Materials | Discovered new exit (range 8) 802 | -10/Materials | Discovered new exit (range 5) 891 | -10/Materials | Core integrity fell below 50% 1482 | -10/Materials | Entered Mines 1500 | -10/Mines | Received a Rocket Launcher from a helpful Derelict 1569 | -10/Mines | Learned location of Storage (-9) 1576 | -10/Mines | Found a hidden stash of uninstalled traps 1604 | -10/Mines | Assembled infested the area 1609 | -10/Mines | Assisted by a Guerilla fighting off Assembled 1636 | -10/Mines | Core integrity fell below 20% 1702 | -10/Mines | Lost 4 parts (1p1n1u1w) 1833 | -10/Mines | Destroyed by D-53 Grenadier with Mini Grenade Launcher Last Messages --------------- 01671_ G-34 Mercenary destroyed. 01675_ Acquired 56 matter. 01677_ Acquired 36 matter. 01685_ System corrupted: Substantial component data lost. 01696_ Searching scrap... 01696_ Found Wheel. 01696_ Found 25 Matter. 01697_ Acquired 25 matter. 01709_ Acquired Wheel. 01751_ System corrupted: Energy discharge (-40). 01821_ Acquired Imp. Heat Sink. 01824_ Acquired 7 matter. 01826_ U-05 Engineer builds a Wall. 01826_ Acquired Wheel. 01827_ Acquired 11 matter. 01829_ Dropped Wheel. 01829_ Acquired Wheel. 01830_ U-05 Engineer lays Concrete. 01832_ Lgt. Assault Rifle destroyed. 01832_ R-06 Scavenger destroyed. Map ----- +----------------------------------------------------+ | ?????????????????????????????????????????????????? | | ?????????????????????????????????????????????????? | | ?????????????????????????????????????????????##### | | ?????????????????????????????????????????????# | | ?????????????????????????????????????????????# ### | | ??????????????????????????????###########????# #?? | | ??????????????????????????????# #?#### #?? | | ??????????????????????????????# #?# #?? | | ??????????????????????????????# """ """ #?# ####?? | | ??????????????????????????????# """ """ ### #????? | | ??????????????????????????????# """ """ #????? | | ??????????????????????????????# ### #????? | | ??????????????????????????????# """ """ #?# #????? | | ??????????????????????????????# """[""" #?# ####?? | | ????????????????????######????# ""= """ #?# #?? | | ????????????????????# ##### #?#### #?? | | ????????????????????# d """ """ #????# ##? | | ?????????????# ???## d ##### """ """ #????# #? | | ?????????????# ## #???# """ """ #????## #? | | ?????????????# #???# #?????# #? | | ?????????????# ### ###?###########?????# #? | | ?????????????## ????## ##????????????????# #? | | ????????????????????# % ##???????????????# #? | | ????????????????????## ##??????????????# #? | | ????????????????###### = ##??????????????# #? | | ?????????? u u @* ##?????????????# #? | | ??????????????####### !%* ##????????????# #? | | ????????????????????# [ r= #????????????# ## | | ????????????????????# # #???????????## # | | ????????????????????# ######## ############# | | ????????????????????# ???????## | | ????????????????????#?????????# ############# | | ??????????????????????????????# #???????????# | | ??????????????????????????????# #?????#####?# | | ??????????????????????????????# #????# ### | | ??????????????????????????????# #??## ### | | ?????????????????????????????## ### #?## | | ?????????????????????????????# #???## | | ?????????????????????????????# #?????## | | ??????????????????????????????# #??????# | | ??????????????????????????????## ##?????# | | ???????????????????????????????# #?????? | | ???????????????????????????????## #?????? | | ????????????????????????????????# ####???### | | ????????????????????????????????## ##??????# | | ?????????????????????????????????## ##??????# | | ??????????????????????????????????# #####??# | | ?????????????????????????????????## #### | | ?????????????????????????????????# ## | | ????????????????????????????????# ### | +----------------------------------------------------+ Best States ------------- Heat Dissipation 25 Energy Generation 10 Energy Capacity 250 Matter Stores 300 Matter Capacity 300 Sight Range 16 Terrain Scan Density 10 Armor Coverage 150 Weapon Shielding 33 Evasion (%) 44 Item Schematics ----------------- None Robot Schematics ------------------ None Fabricated ------------ Nothing Alien Tech Used ----------------- None Achievements -------------- None Challenges ------------ None Game ------ Seed SurgeDefenseTriangulator Manual? 0 Play Time 00:20:59 Cumulative 533.5 hours Start 2022.05.31 @ 15:40:29 End 2022.05.31 @ 15:57:29 Sessions 1 Manual Loads 0 Difficulty Rogue Special Mode None Game No. 434 Rogue 434 Adventurer 0 Explorer 0 Win Type - Total 5 Types 4/0/0/1/0/0/0/0/0 Lore% 71 Gallery% 83 Achievement% 66 Wizard Run 0 Options --------- ASCII 0 Keyboard 1 Movement Numpad Keybinds 0 Fullscreen 1 Font 12/Terminus Map View 83x54 Tactical HUD 1 Map Filters NONE Filters NONE Steam 1 RUN: 3b906cca-6786-468f-9ede-c2363cf45b69